bitfinex-derivatives/quotes_SOLF0:USTF0_20250901
["timestamp","ask_amount","ask_price","bid_price","bid_amount"]
[1756710351622,3.58679277,199.37,199.35,1.79347707]
[1756710351824,3.11806681,199.39,199.35,1.79347707]
[1756710352023,3.58679277,199.38,199.28,4.5157]
[1756710352224,3.58679277,199.37,199.35,1.79347707]
[1756710352423,3.11806681,199.39,199.35,1.79347707]
[1756710352725,3.58618732,199.38,199.28,4.5157]
[1756710353024,3.58618732,199.37,199.35,1.79347707]
[1756710353324,0.87335149,199.39,199.35,1.79347707]
[1756710353524,3.58537581,199.38,199.3,4.5153]
[1756710353721,0.87335149,199.39,199.35,1.79347707]
[1756710354024,3.58534317,199.38,199.36,1.79347707]
[1756710354224,0.87335149,199.39,199.36,1.79347707]
[1756710354424,0.87335149,199.39,199.27,2.42]
[1756710354620,0.87335149,199.39,199.36,1.79347707]
[1756710354820,0.87335149,199.39,199.35,1.79347707]
[1756710356321,0.87335149,199.39,199.28,4.5157]
[1756710356622,3.5834411,199.38,199.35,1.79347707]
[1756710356823,0.87335149,199.39,199.28,4.5157]
[1756710356824,3.5834411,199.37,199.28,4.5157]
[1756710357022,0.87335149,199.39,199.35,1.79347707]
[1756710357221,3.5837286,199.38,199.35,1.79347707]
[1756710357416,3.5837286,199.37,199.29,4.5155]
[1756710357614,0.87335149,199.39,199.29,4.5155]
[1756710357818,0.87335149,199.39,199.34,1.79347707]
[1756710357819,3.58336928,199.38,199.34,1.79347707]
[1756710358015,3.58336928,199.37,199.34,1.79347707]
[1756710358217,0.87335149,199.39,199.34,1.79347707]
[1756710358421,3.58336928,199.38,199.27,4.516]
[1756710358617,5.8280846,199.37,199.33,1.79347707]
[1756710358915,2.24471532,199.37,199.33,1.79347707]
[1756710359116,0.87335149,199.39,199.35,1.79347707]
[1756710359322,0.87335149,199.39,199.28,2.24471532]
[1756710359520,0.87335149,199.39,199.35,1.79347707]
[1756710359920,0.87335149,199.39,199.28,2.24471532]
[1756710360225,0.87335149,199.39,199.35,1.79347707]
[1756710360719,0.87335149,199.39,199.31,4.5151]
[1756710361024,0.87335149,199.39,199.34,1.79347707]
[1756710361523,3.11806681,199.39,199.34,1.79347707]
[1756710362122,0.87335149,199.39,199.34,1.79347707]
[1756710362726,0.87335149,199.39,199.35,1.79347707]
[1756710363325,0.87335149,199.39,199.29,4.5155]
[1756710363523,0.87335149,199.39,199.35,1.79347707]
[1756710363724,0.87335149,199.39,199.34,1.79347707]
[1756710364425,2.24471532,199.38,199.27,4.5156]
[1756710364726,2.24471532,199.38,199.33,1.79347707]
[1756710364923,2.24471532,199.35,199.21,339.40471532]
[1756710365123,2.24471532,199.35,199.25,4.5161]
[1756710365326,2.24471532,199.35,199.3,1.79347707]
[1756710365526,2.24471532,199.35,199.25,4.5161]
[1756710365721,2.24471532,199.35,199.3,1.79347707]
[1756710365930,2.24471532,199.32,199.21,337.16]
[1756710366220,2.24471532,199.29,199.16,125.2]
[1756710366423,2.24471532,199.29,199.24,1.79347707]
[1756710366729,2.24471532,199.29,199.23,1.79347707]
[1756710367027,2.24471532,199.26,199.2,1.79347707]
[1756710367727,2.24471532,199.26,199.21,1.79347707]
[1756710368129,2.24471532,199.29,199.14,2.24471532]
[1756710368330,2.24471532,199.31,199.17,2.24471532]
[1756710368626,2.24471532,199.31,199.26,1.79347707]
[1756710369026,2.24471532,199.31,199.2,6.76221532]
[1756710369217,2.24471532,199.31,199.17,2.24471532]
[1756710369418,2.24471532,199.31,199.17,6.76281532]
[1756710369829,3.59180928,199.3,199.23,1.79347707]
[1756710370024,3.59180928,199.29,199.25,1.79347707]
[1756710370219,3.59180928,199.28,199.25,1.79347707]
[1756710370424,3.59180928,199.27,199.25,1.79347707]
[1756710370628,2.24471532,199.32,199.25,1.79347707]
[1756710370928,3.5913186,199.31,199.25,1.79347707]
[1756710371128,3.5913186,199.3,199.25,1.79347707]
[1756710371329,3.5913186,199.29,199.25,1.79347707]
[1756710371529,3.5913186,199.28,199.25,1.79347707]
[1756710371728,3.5913186,199.27,199.26,1.79347707]
[1756710372226,3.5913186,199.27,199.2,4.5176]
[1756710372430,2.24471532,199.32,199.26,1.79347707]
[1756710372625,3.5908439,199.31,199.26,1.79347707]
[1756710372826,3.5908439,199.3,199.21,4.5172]
[1756710373024,3.5908439,199.29,199.26,1.79347707]
[1756710373221,3.5908439,199.28,199.26,1.79347707]
[1756710373421,3.5908439,199.27,199.21,4.5172]
[1756710373626,2.24471532,199.32,199.26,1.79347707]
[1756710373822,3.59061258,199.31,199.26,1.79347707]
[1756710374024,3.59061258,199.3,199.21,4.5172]
[1756710374230,3.59061258,199.29,199.26,1.79347707]
[1756710374530,3.59061258,199.28,199.26,1.79347707]
[1756710374730,3.59061258,199.27,199.21,4.5172]
[1756710374930,2.24471532,199.32,199.26,1.79347707]
[1756710375131,3.590385,199.31,199.26,1.79347707]
[1756710375429,3.590385,199.3,199.21,4.5172]
[1756710375629,3.590385,199.29,199.26,1.79347707]
[1756710375823,3.590385,199.28,199.26,1.79347707]
[1756710376024,3.590385,199.27,199.19,4.5178]
[1756710376333,2.24471532,199.32,199.17,6.76291532]
[1756710376526,3.5904406,199.31,199.24,1.79347707]
[1756710376731,3.5904406,199.3,199.24,1.79347707]
[1756710376931,3.5904406,199.29,199.24,1.79347707]
[1756710377232,3.5904406,199.28,199.24,1.79347707]
[1756710377433,3.5904406,199.27,199.24,1.79347707]
[1756710377731,3.5904406,199.26,199.24,1.79347707]
[1756710377934,2.24471532,199.32,199.24,1.79347707]
[1756710378230,3.59037892,199.31,199.24,1.79347707]
[1756710378430,3.59037892,199.3,199.24,1.79347707]
[1756710378631,3.59037892,199.29,199.24,1.79347707]
[1756710378833,3.59037892,199.28,199.24,1.79347707]
[1756710379134,3.59037892,199.27,199.24,1.79347707]
[1756710379330,3.59037892,199.26,199.24,1.79347707]
[1756710379632,2.24471532,199.32,199.25,1.79347707]
[1756710379833,3.59025424,199.31,199.25,1.79347707]
[1756710380029,3.59025424,199.3,199.19,4.5177]
[1756710380229,3.59025424,199.29,199.25,1.79347707]
[1756710380431,3.59025424,199.28,199.25,1.79347707]
[1756710380730,3.59025424,199.27,199.19,4.5177]
[1756710381031,3.59025424,199.26,199.25,1.79347707]
[1756710381632,3.59025424,199.26,199.17,6.76291532]
[1756710381934,2.24471532,199.29,199.15,4.5187]
[1756710382131,3.58960103,199.28,199.22,1.79347707]
[1756710382432,3.58960103,199.27,199.22,1.79347707]
[1756710382631,3.58960103,199.26,199.22,1.79347707]
[1756710382830,3.58960103,199.25,199.15,4.5187]
[1756710383034,3.58960103,199.24,199.22,1.79347707]
[1756710383237,2.24471532,199.29,199.22,1.79347707]
[1756710383434,3.58821146,199.28,199.22,1.79347707]
[1756710383625,3.58821146,199.27,199.22,1.79347707]
[1756710383830,5.83292678,199.26,199.13,4.5191]
[1756710384136,3.58821146,199.25,199.22,1.79347707]
[1756710384831,3.58821146,199.25,199.0,17.32471532]
[1756710385029,2.24471532,199.23,199.11,4.5195]
[1756710385230,3.58821146,199.22,199.18,1.79347707]
[1756710385431,2.24471532,199.23,199.04,97.91917181]
[1756710385432,3.58821146,199.21,199.04,97.91917181]
[1756710385633,5.83128943,199.2,199.04,97.91917181]
[1756710385833,38.92,199.27,199.04,97.91917181]
[1756710385834,2.24471532,199.17,199.13,1.79347707]
[1756710387036,20.70431585,199.27,199.13,1.79347707]
[1756710387336,2.24471532,199.17,199.13,1.79347707]
[1756710388129,2.24471532,199.17,199.04,97.91917181]
[1756710388335,3.58057731,199.16,199.04,97.91917181]
[1756710388532,2.24471532,199.17,199.12,1.79347707]
[1756710388737,3.58060043,199.16,199.04,97.91917181]
[1756710388936,2.24471532,199.17,199.11,1.79347707]
[1756710389137,3.58060253,199.16,199.11,1.79347707]
[1756710389338,2.24471532,199.17,199.11,1.79347707]
[1756710389536,3.57865888,199.16,199.11,1.79347707]
[1756710389737,2.24471532,199.17,199.11,1.79347707]
[1756710389936,3.57865802,199.16,199.11,1.79347707]
[1756710390140,2.24471532,199.17,199.11,1.79347707]
[1756710390437,3.57865802,199.16,199.11,1.79347707]
[1756710390637,2.24471532,199.17,199.11,1.79347707]
[1756710390838,3.57704799,199.16,199.11,1.79347707]
[1756710391036,2.24471532,199.14,199.11,1.79347707]
[1756710391638,2.24471532,199.15,199.11,1.79347707]
[1756710393345,2.24471532,199.15,199.04,97.91917181]
[1756710393536,2.24471532,199.15,199.11,1.79347707]
[1756710393733,2.24471532,199.15,199.04,97.91917181]
[1756710393938,2.24471532,199.15,199.1,1.79347707]
[1756710394437,2.24471532,199.15,199.04,97.91917181]
[1756710394641,2.24471532,199.14,199.1,1.79347707]
[1756710395045,2.24471532,199.14,199.04,97.91917181]
[1756710395343,2.24471532,199.14,199.1,1.79347707]
[1756710395544,2.24471532,199.14,199.04,97.91917181]
[1756710395735,2.24471532,199.14,199.1,1.79347707]
[1756710396244,2.24471532,199.14,199.04,97.91917181]
[1756710396444,2.24471532,199.14,199.1,1.79347707]
[1756710396644,2.24471532,199.14,199.04,97.91917181]
[1756710397045,2.24471532,199.14,199.11,1.79347707]
[1756710397241,2.24471532,199.14,199.04,97.91917181]
[1756710397441,2.24471532,199.14,199.11,1.79347707]
[1756710397641,2.24471532,199.16,199.11,1.79347707]
[1756710397845,2.24471532,199.16,199.04,97.91917181]
[1756710398041,2.24471532,199.16,199.12,1.79347707]
[1756710398437,2.24471532,199.16,199.04,102.44027181]
[1756710398642,2.24471532,199.16,199.12,1.79347707]
[1756710398842,2.24471532,199.16,199.04,102.44027181]
[1756710399046,2.24471532,199.16,199.12,1.79347707]
[1756710399246,2.24471532,199.16,199.05,4.5208]
[1756710399448,2.24471532,199.16,199.12,1.79347707]
[1756710399648,2.24471532,199.16,199.11,1.79347707]
[1756710399849,3.60214678,199.15,199.11,1.79347707]
[1756710400049,2.24471532,199.16,199.11,1.79347707]
[1756710400242,3.60214678,199.15,199.11,1.79347707]
[1756710400444,2.24471532,199.16,199.11,1.79347707]
[1756710400650,3.6029275,199.15,199.12,1.79347707]
[1756710400849,2.24471532,199.16,199.12,1.79347707]
[1756710401052,3.6029275,199.15,199.05,4.5208]
[1756710401255,2.24471532,199.16,199.12,1.79347707]
[1756710401451,3.60394123,199.15,199.12,1.79347707]
[1756710401648,2.24471532,199.16,199.05,4.5208]
[1756710401854,3.60394123,199.15,199.12,1.79347707]
[1756710402053,2.24471532,199.16,199.12,1.79347707]
[1756710402254,3.60394123,199.15,199.05,4.5208]
[1756710402453,2.24471532,199.16,199.12,1.79347707]
[1756710402655,3.60483426,199.15,199.12,1.79347707]
[1756710402954,2.24471532,199.16,199.05,4.5208]
[1756710403154,3.60483426,199.15,199.12,1.79347707]
[1756710403354,3.60594577,199.14,199.05,4.5208]
[1756710403657,2.24471532,199.16,199.12,1.79347707]
[1756710403856,3.60594577,199.15,199.12,1.79347707]
[1756710404056,3.60594577,199.14,199.04,97.91917181]
[1756710404256,2.24471532,199.16,199.12,1.79347707]
[1756710404455,3.60782048,199.15,199.12,1.79347707]
[1756710404654,3.60782048,199.14,199.12,1.79347707]
[1756710404957,2.24471532,199.16,199.12,1.79347707]
[1756710405158,3.60782048,199.15,199.12,1.79347707]
[1756710405352,2.24471532,199.16,199.13,1.79347707]
[1756710405546,3.60770628,199.15,199.05,2.24471532]
[1756710405746,2.24471532,199.16,199.05,2.24471532]
[1756710405948,3.60770628,199.15,199.12,1.79347707]
[1756710406154,2.24471532,199.16,199.12,1.79347707]
[1756710406354,3.6098568,199.14,199.12,1.79347707]
[1756710406554,2.24471532,199.16,199.12,1.79347707]
[1756710406756,3.6098568,199.15,199.13,1.79347707]
[1756710406955,3.6098568,199.14,199.13,1.79347707]
[1756710407156,3.6098568,199.14,199.06,4.5207]
[1756710407352,2.24471532,199.16,199.13,1.79347707]
[1756710407656,3.61255457,199.15,199.12,1.79347707]
[1756710407852,3.61255457,199.14,199.12,1.79347707]
[1756710408054,2.24471532,199.16,199.12,1.79347707]
[1756710408251,3.61255457,199.15,199.12,1.79347707]
[1756710408454,3.61255457,199.14,199.12,1.79347707]
[1756710408654,3.61255457,199.13,199.12,1.79347707]
[1756710408855,3.61255457,199.15,199.12,1.79347707]
[1756710409654,3.61255457,199.15,199.13,1.79347707]
[1756710410258,3.61255457,199.15,199.07,4.5205]
[1756710410461,3.61255457,199.15,199.13,1.79347707]
[1756710410758,3.61255457,199.15,199.12,1.79347707]
[1756710412659,3.61255457,199.15,199.07,4.5205]
[1756710412963,3.61255457,199.15,199.12,1.79347707]
[1756710414862,3.61255457,199.15,199.13,1.79347707]
[1756710415558,3.61255457,199.15,199.04,97.91917181]
[1756710415760,2.24471532,199.19,199.14,1.79347707]
[1756710415957,3.62162332,199.18,199.15,1.79347707]
[1756710416256,3.62162332,199.17,199.15,1.79347707]
[1756710416462,3.62162332,199.16,199.11,4.5196]
[1756710416663,3.62162332,199.16,199.07,2.24471532]
[1756710416664,2.24471532,199.22,199.15,1.79347707]
[1756710416865,3.62254096,199.21,199.16,1.79347707]
[1756710417057,3.62254096,199.2,199.16,1.79347707]
[1756710417364,3.62254096,199.19,199.16,1.79347707]
[1756710417554,3.62254096,199.18,199.16,1.79347707]
[1756710417760,3.62254096,199.17,199.16,1.79347707]
[1756710417954,3.62254096,199.22,199.16,1.79347707]
[1756710418159,3.62254096,199.21,199.16,1.79347707]
[1756710418363,3.62254096,199.2,199.16,1.79347707]
[1756710418662,3.62254096,199.19,199.16,1.79347707]
[1756710418861,3.62254096,199.18,199.16,1.79347707]
[1756710419061,3.62254096,199.17,199.16,1.79347707]
[1756710419264,3.62254096,199.22,199.16,1.79347707]
[1756710419462,3.62254096,199.21,199.16,1.79347707]
[1756710419664,3.62254096,199.2,199.17,1.79347707]
[1756710419866,3.62254096,199.19,199.17,1.79347707]
[1756710420058,3.62254096,199.18,199.09,4.52]
[1756710420258,2.24471532,199.23,199.17,1.79347707]
[1756710420459,3.62663252,199.22,199.17,1.79347707]
[1756710420758,3.62663252,199.21,199.09,4.52]
[1756710420959,3.62663252,199.2,199.17,1.79347707]
[1756710421169,3.62663252,199.19,199.17,1.79347707]
[1756710421365,3.62663252,199.18,199.09,4.52]
[1756710421664,2.24471532,199.22,199.17,1.79347707]
[1756710421864,3.62806822,199.21,199.1,4.5198]
[1756710422163,3.62806822,199.2,199.17,1.79347707]
[1756710422365,3.62806822,199.19,199.17,1.79347707]
[1756710422560,3.62806822,199.18,199.04,97.91917181]
[1756710422767,2.24471532,199.16,199.04,97.91917181]
[1756710423068,3.62806822,199.15,199.12,1.79347707]
[1756710423561,3.62806822,199.15,199.04,97.91917181]
[1756710423760,3.62806822,199.15,199.04,102.44027181]
[1756710423961,3.62806822,199.15,199.11,1.79347707]
[1756710425267,3.62806822,199.14,199.11,1.79347707]
[1756710425457,3.62806822,199.13,199.11,1.79347707]
[1756710425661,3.62806822,199.12,199.04,100.16388713]
[1756710425858,2.24471532,199.18,199.04,100.16388713]
[1756710426063,3.63488502,199.17,199.15,1.79347707]
[1756710426359,3.63488502,199.16,199.04,97.91917181]
[1756710426559,3.63488502,199.15,199.04,97.91917181]
[1756710426765,3.63488502,199.14,199.12,1.79347707]
[1756710426967,3.63488502,199.13,199.12,1.79347707]
[1756710427160,3.63488502,199.16,199.04,97.91917181]
[1756710427366,3.63488502,199.15,199.12,1.79347707]
[1756710427565,3.63488502,199.14,199.12,1.79347707]
[1756710427765,3.63488502,199.13,199.12,1.79347707]
[1756710428166,3.63488502,199.16,199.12,1.79347707]
[1756710428469,3.63488502,199.15,199.12,1.79347707]
[1756710428665,3.63488502,199.14,199.12,1.79347707]
[1756710428871,3.63488502,199.13,199.12,1.79347707]
[1756710432874,3.63488502,199.13,199.04,97.91917181]
[1756710433077,3.63488502,199.12,199.04,97.91917181]
[1756710433377,3.63488502,199.11,199.1,1.79347707]
[1756710435779,3.63488502,199.11,199.04,97.91917181]
[1756710435975,3.63488502,199.1,199.04,97.91917181]
[1756710436180,8.40647378,199.19,199.04,97.91917181]
[1756710436181,3.63488502,199.09,199.08,1.79347707]
[1756710436581,3.63488502,199.09,199.04,97.91917181]
[1756710436775,3.63488502,199.09,198.97,458.60471532]
[1756710436776,3.64376224,199.08,198.97,339.54471532]
[1756710436981,3.64376224,199.07,199.05,1.79347707]
[1756710437182,3.64376224,199.06,198.97,337.3]
[1756710437382,2.24471532,199.09,199.05,1.79347707]
[1756710437581,3.64272524,199.08,198.98,4.5225]
[1756710437783,3.64272524,199.07,199.0,2.24471532]
[1756710437985,19.38,199.13,199.09,1.79347707]
[1756710438188,3.64225856,199.12,199.09,1.79347707]
[1756710438379,3.64225856,199.11,199.09,1.79347707]
[1756710438580,3.64225856,199.1,199.09,1.79347707]
[1756710440990,3.64225856,199.1,199.0,2.24471532]
[1756710441188,3.58685772,199.09,198.97,2.24471532]
[1756710441388,3.58685772,199.08,198.97,2.24471532]
[1756710441594,2.24471532,199.11,198.92,337.56]
[1756710441595,3.58685772,199.07,198.92,337.56]
[1756710441795,3.58685772,199.06,198.93,2.24471532]
[1756710442090,5.83157304,199.05,199.01,1.79347707]
[1756710442288,3.58685772,199.04,199.01,1.79347707]
[1756710442486,3.58685772,199.04,198.93,2.24471532]
[1756710442688,3.58685772,199.03,198.93,6.76851532]
[1756710442888,2.24471532,199.08,198.93,2.24471532]
[1756710443187,3.5851638,199.07,199.01,1.79347707]
[1756710443387,3.5851638,199.06,199.01,1.79347707]
[1756710443583,3.5851638,199.05,198.92,339.80471532]
[1756710443892,3.5851638,199.04,198.92,337.56]
[1756710444191,3.5851638,199.03,198.99,1.79347707]
[1756710444393,2.24471532,199.05,198.92,337.56]
[1756710444394,3.5851638,199.02,198.92,337.56]
[1756710444590,3.5851638,199.01,198.99,1.79347707]
[1756710444890,3.5851638,199.0,198.96,1.79347707]
[1756710445092,3.58179079,198.99,198.87,2.24471532]
[1756710445282,2.24471532,199.02,198.96,1.79347707]
[1756710445486,3.5792811,199.01,198.87,2.24471532]
[1756710445691,3.5792811,199.0,198.95,1.79347707]
[1756710445893,3.5792811,198.99,198.95,1.79347707]
[1756710446093,3.5792811,198.98,198.87,2.24471532]
[1756710446293,2.24471532,198.99,198.93,1.79347707]
[1756710446497,2.24471532,198.99,198.92,1.79347707]
[1756710446498,3.57665286,198.98,198.92,1.79347707]
[1756710446693,2.24471532,198.99,198.92,1.79347707]
[1756710446892,3.57668071,198.98,198.92,1.79347707]
[1756710447093,3.57668071,198.97,198.92,1.79347707]
[1756710447397,2.24471532,198.99,198.92,1.79347707]
[1756710447596,3.57404013,198.98,198.92,1.79347707]
[1756710447795,2.24471532,198.99,198.92,1.79347707]
[1756710448094,2.24471532,198.96,198.82,2.24471532]
[1756710448296,2.24471532,198.96,198.9,1.79347707]
[1756710449098,2.24471532,198.96,198.82,2.24471532]
[1756710449298,2.24471532,198.96,198.9,1.79347707]
[1756710449798,2.24471532,198.96,198.82,2.24471532]
[1756710449993,2.24471532,198.96,198.9,1.79347707]
[1756710450498,2.24471532,198.96,198.82,2.24471532]
[1756710450700,2.24471532,198.96,198.9,1.79347707]
[1756710451302,2.24471532,198.96,198.82,2.24471532]
[1756710451595,2.24471532,198.96,198.9,1.79347707]
[1756710451802,5.54,198.97,198.85,2.24471532]
[1756710452008,2.24471532,198.99,198.93,1.79347707]
[1756710452397,2.24471532,199.02,198.93,1.79347707]
[1756710452595,26.36213784,199.01,198.93,1.79347707]
[1756710452809,22.8,199.01,198.88,2.24471532]
[1756710453000,22.8,199.01,198.95,1.79347707]
[1756710453199,2.24471532,198.99,198.8,361.0]
[1756710453401,2.24471532,198.99,198.85,2.24471532]
[1756710453709,2.24471532,198.96,198.91,1.79347707]
[1756710453899,2.24471532,198.93,198.89,1.79347707]
[1756710455505,2.24471532,198.93,198.8,339.82471532]
[1756710455802,2.24471532,198.93,198.89,1.79347707]
[1756710456199,2.24471532,198.93,198.8,339.82471532]
[1756710456403,2.24471532,198.93,198.89,1.79347707]
[1756710456810,6.78471532,198.95,198.89,1.79347707]
[1756710457110,6.78471532,198.95,198.8,339.82471532]
[1756710457311,6.78471532,198.95,198.89,1.79347707]
[1756710457809,6.78471532,198.95,198.8,339.82471532]
[1756710458108,6.78471532,198.95,198.89,1.79347707]
[1756710458499,6.78471532,198.95,198.8,339.82471532]
[1756710458709,6.78471532,198.95,198.89,1.79347707]
[1756710458909,6.78471532,198.95,198.8,339.82471532]
[1756710459211,6.78471532,198.95,198.88,1.79347707]
[1756710459411,6.78471532,198.95,198.8,339.82471532]
[1756710459709,8.82471532,198.95,198.88,1.79347707]
[1756710460110,8.82471532,198.95,198.8,344.35131532]
[1756710460311,8.82471532,198.95,198.88,1.79347707]
[1756710460911,8.82471532,198.95,198.8,344.35131532]
[1756710461109,8.82471532,198.95,198.88,1.79347707]
[1756710461310,13.80471532,198.95,198.8,344.35131532]
[1756710461511,13.80471532,198.95,198.88,1.79347707]
[1756710462508,13.80471532,198.95,198.8,344.35131532]
[1756710462708,13.80471532,198.95,198.88,1.79347707]
[1756710462909,13.80471532,198.95,198.8,344.35131532]
[1756710463103,13.80471532,198.95,198.88,1.79347707]
[1756710463308,13.80471532,198.95,198.8,339.82471532]
[1756710463503,13.80471532,198.95,198.76,2.24471532]
[1756710463504,2.24471532,198.92,198.76,2.24471532]
[1756710463712,2.24471532,198.92,198.85,1.79347707]
[1756710464107,2.24471532,198.92,198.76,2.24471532]
[1756710464408,3.58411983,198.91,198.85,1.79347707]
[1756710464601,27.96,198.92,198.86,1.79347707]
[1756710464803,3.58419277,198.91,198.79,2.24471532]
[1756710465004,27.96,198.92,198.87,1.79347707]
[1756710465216,3.58425875,198.91,198.87,1.79347707]
[1756710465514,27.96,198.92,198.79,2.24471532]
[1756710465815,3.58293074,198.91,198.79,2.24471532]
[1756710466009,27.96,198.92,198.86,1.79347707]
[1756710466209,3.5829314,198.91,198.86,1.79347707]
[1756710466412,3.58152742,198.9,198.76,2.24471532]
[1756710466609,3.58152742,198.89,198.84,1.79347707]
[1756710466912,2.24471532,198.91,198.84,1.79347707]
[1756710467113,3.58196724,198.9,198.84,1.79347707]
[1756710467408,3.58196724,198.89,198.84,1.79347707]
[1756710467615,2.24471532,198.91,198.84,1.79347707]
[1756710467813,3.58164797,198.9,198.84,1.79347707]
[1756710468013,3.58164797,198.89,198.84,1.79347707]
[1756710468214,2.24471532,198.91,198.84,1.79347707]
[1756710468415,3.58097146,198.9,198.84,1.79347707]
[1756710468715,3.58097146,198.89,198.84,1.79347707]
[1756710468915,2.24471532,198.91,198.76,2.24471532]
[1756710469116,3.58083177,198.9,198.76,2.24471532]
[1756710469310,3.58083177,198.89,198.83,1.79347707]
[1756710469506,3.58083177,198.88,198.83,1.79347707]
[1756710469709,3.58083177,198.87,198.74,2.24471532]
[1756710469910,2.24471532,198.91,198.82,1.79347707]
[1756710470113,3.57927561,198.9,198.82,1.79347707]
[1756710470313,3.57927561,198.89,198.82,1.79347707]
[1756710470513,3.57927561,198.88,198.82,1.79347707]
[1756710470714,3.57927561,198.87,198.82,1.79347707]
[1756710471014,2.24471532,198.91,198.82,1.79347707]
[1756710471210,3.57843652,198.9,198.82,1.79347707]
[1756710471415,2.24471532,198.88,198.82,1.79347707]
[1756710471611,3.57843652,198.87,198.82,1.79347707]
[1756710471817,2.24471532,198.88,198.82,1.79347707]
[1756710472019,3.57726241,198.87,198.82,1.79347707]
[1756710472219,2.24471532,198.88,198.82,1.79347707]
[1756710472517,3.57630401,198.87,198.82,1.79347707]
[1756710472718,2.24471532,198.88,198.74,4.528]
[1756710472922,3.57689055,198.87,198.83,1.79347707]
[1756710473220,2.24471532,198.88,198.75,2.24471532]
[1756710473419,3.57692028,198.87,198.81,1.79347707]
[1756710473615,3.57692028,198.86,198.81,1.79347707]
[1756710473816,5.82129513,198.85,198.7,0.87548271]
[1756710474023,5.82129513,198.85,198.53,858.0]
[1756710474024,3.57623163,198.84,198.71,2.24471532]
[1756710474319,3.57623163,198.83,198.78,1.79347707]
[1756710474514,3.57623163,198.82,198.78,1.79347707]
[1756710474710,2.24471532,198.85,198.78,1.79347707]
[1756710474911,3.57572552,198.84,198.78,1.79347707]
[1756710475112,3.57572552,198.83,198.78,1.79347707]
[1756710475312,3.57572552,198.82,198.78,1.79347707]
[1756710475522,2.24471532,198.85,198.78,1.79347707]
[1756710475718,49.75556841,198.84,198.78,1.79347707]
[1756710475918,3.57556841,198.83,198.78,1.79347707]
[1756710476118,3.57556841,198.82,198.78,1.79347707]
[1756710476418,46.18,198.84,198.78,1.79347707]
[1756710476618,3.57572338,198.83,198.78,1.79347707]
[1756710476916,3.57572338,198.82,198.78,1.79347707]
[1756710477116,46.18,198.84,198.78,1.79347707]
[1756710477316,3.57603974,198.83,198.78,1.79347707]
[1756710477520,3.57603974,198.82,198.78,1.79347707]
[1756710477720,46.18,198.84,198.79,1.79347707]
[1756710477922,3.5766764,198.83,198.79,1.79347707]
[1756710478226,3.5766764,198.82,198.7,2.24471532]
[1756710478418,46.18,198.84,198.79,1.79347707]
[1756710478618,3.57701379,198.83,198.78,1.79347707]
[1756710478818,3.57701379,198.82,198.78,1.79347707]
[1756710479018,46.18,198.84,198.7,2.24471532]
[1756710479215,3.57701422,198.83,198.78,1.79347707]
[1756710479422,3.57701422,198.82,198.78,1.79347707]
[1756710479623,46.18,198.84,198.7,2.24471532]
[1756710479824,3.57764854,198.83,198.78,1.79347707]
[1756710480023,3.57764854,198.82,198.7,2.24471532]
[1756710480323,3.5791911,198.81,198.78,1.79347707]
[1756710480618,2.24471532,198.88,198.73,2.24471532]
[1756710480818,3.58072117,198.87,198.82,1.79347707]
[1756710481019,3.58072117,198.86,198.82,1.79347707]
[1756710481221,3.58072117,198.85,198.82,1.79347707]
[1756710481424,2.24471532,198.88,198.82,1.79347707]
[1756710481626,3.58194849,198.87,198.82,1.79347707]
[1756710481929,3.58194849,198.86,198.73,2.24471532]
[1756710482224,3.58194849,198.85,198.81,1.79347707]
[1756710482425,3.58194849,198.84,198.81,1.79347707]
[1756710482627,3.58194849,198.83,198.73,2.24471532]
[1756710482827,82.84,198.87,198.73,2.24471532]
[1756710483025,3.58286721,198.86,198.82,1.79347707]
[1756710483224,3.58286721,198.85,198.82,1.79347707]
[1756710483421,3.58286721,198.84,198.73,2.24471532]
[1756710483619,3.58286721,198.83,198.72,4.5284]
[1756710483826,82.84,198.87,198.81,1.79347707]
[1756710484030,3.58479604,198.86,198.81,1.79347707]
[1756710484227,3.58479604,198.85,198.81,1.79347707]
[1756710484429,3.58479604,198.84,198.81,1.79347707]
[1756710484727,3.58479604,198.83,198.82,1.79347707]
[1756710485129,3.58479604,198.86,198.82,1.79347707]
[1756710485329,3.58479604,198.85,198.82,1.79347707]
[1756710485529,3.58479604,198.84,198.82,1.79347707]
[1756710485730,3.58479604,198.83,198.82,1.79347707]
[1756710485922,3.58479604,198.83,198.73,2.24471532]
[1756710486123,3.58479604,198.82,198.81,1.79347707]
[1756710486526,2.24471532,198.85,198.7,2.24471532]
[1756710486731,3.58479604,198.84,198.7,2.24471532]
[1756710486933,3.58479604,198.84,198.8,1.79347707]
[1756710487231,3.58479604,198.84,198.81,1.79347707]
[1756710487432,3.58479604,198.83,198.81,1.79347707]
[1756710487632,3.58479604,198.82,198.81,1.79347707]
[1756710488333,3.58479604,198.86,198.81,1.79347707]
[1756710488532,3.58479604,198.85,198.74,4.528]
[1756710488732,3.58479604,198.84,198.82,1.79347707]
[1756710489032,3.58479604,198.83,198.82,1.79347707]
[1756710489233,3.58479604,198.86,198.82,1.79347707]
[1756710489431,3.58479604,198.86,198.73,2.24471532]